bitfinex-derivatives/quotes_SOLF0:USTF0_20251006
["timestamp","ask_amount","ask_price","bid_price","bid_amount"]
[1759713689215,7.28,230.0,229.91,3.6145055]
[1759713690718,3.9122,229.98,229.91,3.6145055]
[1759713691821,3.9122,229.98,229.9,3.6145055]
[1759713692216,7.28,230.0,229.9,3.6145055]
[1759713692217,3.9125,229.97,229.9,3.6145055]
[1759713692422,7.28,229.96,229.9,3.6145055]
[1759713693720,60.8421,230.04,229.88,3.64]
[1759713693721,7.72,230.07,229.91,7.2545055]
[1759713694021,7.72,230.07,229.95,11.1670055]
[1759713694216,7.72,230.07,229.96,3.6145055]
[1759713695422,7.72,230.07,229.95,7.2545055]
[1759713695724,3.9113,230.03,229.95,7.2545055]
[1759713696126,3.9113,230.03,229.95,20.34123999]
[1759713696325,3.9113,230.03,229.95,7.2545055]
[1759713696623,7.72,230.02,229.92,3.6145055]
[1759713697417,3.9118,230.01,229.92,3.6145055]
[1759713697823,3.9118,230.01,229.92,16.34691481]
[1759713698021,3.9118,230.01,229.92,3.6145055]
[1759713698724,7.72,230.02,229.92,7.5275055]
[1759713698921,7.72,230.02,229.93,3.6145055]
[1759713699427,116.74,230.02,229.93,3.6145055]
[1759713699618,7.72,230.02,229.93,3.6145055]
[1759713699823,116.74,230.02,229.92,7.5275055]
[1759713700028,116.74,230.02,229.92,3.6145055]
[1759713700228,3.912,229.99,229.92,3.6145055]
[1759713700827,7.72,229.99,229.92,3.6145055]
[1759713703222,7.72,229.99,229.93,3.6145055]
[1759713703429,7.72,229.99,229.92,3.6145055]
[1759713704230,7.72,229.99,229.93,3.6145055]
[1759713704627,11.6323,229.98,229.93,3.6145055]
[1759713705129,11.6323,229.98,229.92,16.38157155]
[1759713705929,7.72,229.98,229.92,16.38157155]
[1759713706132,108.8,230.01,229.95,3.6145055]
[1759713708531,1.2584336,230.02,229.95,3.6145055]
[1759713709037,63.02,230.03,229.94,3.6145055]
[1759713709236,63.02,230.03,229.95,3.6145055]
[1759713711934,11.6312,230.04,229.95,3.6145055]
[1759713712239,108.8512,230.04,229.95,3.6145055]
[1759713712438,120.2712,230.04,229.95,3.6145055]
[1759713712834,7.63,230.08,229.99,7.2445055]
[1759713713042,7.63,230.14,230.02,3.6145055]
[1759713713343,7.63,230.14,230.03,3.6145055]
[1759713713541,7.63,230.14,230.04,7.2445055]
[1759713713843,81.05,230.14,230.04,7.2445055]
[1759713714246,116.41,230.14,230.04,7.2445055]
[1759713715239,7.63,230.14,230.05,3.911]
[1759713717942,61.55309707,230.21,230.05,3.6145055]
[1759713717943,7.63,230.21,230.05,3.6145055]
[1759713718245,7.63,230.21,230.08,3.63]
[1759713718438,7.63,230.21,230.1,3.63]
[1759713719044,7.63,230.21,230.13,3.63]
[1759713720443,89.62,230.26,230.13,3.63]
[1759713720646,7.63,230.25,230.13,3.63]
[1759713721247,7.63,230.21,230.11,3.6145055]
[1759713721444,7.63,230.21,230.09,7.2445055]
[1759713722338,3.9085,230.2,230.09,7.2445055]
[1759713723149,3.9085,230.2,230.09,3.63]
[1759713723945,3.9088,230.18,230.09,3.63]
[1759713724150,7.63,230.17,230.04,7.2445055]
[1759713724446,7.63,230.17,230.04,3.63]
[1759713724646,7.63,230.17,229.99,4.86461177]
[1759713724647,60.8151,230.14,230.01,3.6145055]
[1759713724850,7.63,230.11,229.97,3.6145055]
[1759713725348,11.5401,230.11,229.98,3.9121]
[1759713725547,7.63,230.11,229.98,3.9121]
[1759713725739,384.9301,230.22,229.99,60.8532]
[1759713725740,377.1136,230.22,229.99,60.8532]
[1759713725946,3.909,230.17,230.06,7.5408]
[1759713726145,7.63,230.17,230.06,7.5408]
[1759713726954,7.63,230.17,230.08,3.9104]
[1759713727251,7.63,230.17,230.06,3.63]
[1759713727444,7.63,230.14,230.02,11.1558055]
[1759713727843,7.63,230.14,230.0,3.6145055]
[1759713728040,7.63,230.1,230.0,3.63]
[1759713728246,7.63,230.1,230.0,7.2445055]
[1759713728455,7.63,230.1,230.0,3.63]
[1759713729153,7.63,230.21,230.0,3.63]
[1759713729451,316.32,230.22,229.99,60.8527]
[1759713729452,7.63,230.19,230.02,7.2445055]
[1759713729843,7.63,230.19,230.03,3.63]
[1759713730049,7.63,230.19,230.08,3.63]
[1759713730752,7.63,230.19,230.09,3.9102]
[1759713730955,7.63,230.19,230.08,3.63]
[1759713731453,7.63,230.19,230.08,7.5404]
[1759713732754,7.63,230.25,230.11,3.63]
[1759713734357,7.63,230.25,230.11,7.5399]
[1759713735852,7.63,230.25,230.13,3.9096]
[1759713736060,7.63,230.25,230.14,3.63]
[1759713737957,7.51,230.25,230.14,3.63]
[1759713738659,7.51,230.22,230.1,37.53212254]
[1759713739661,3.9083,230.21,230.1,7.54]
[1759713739861,7.51,230.2,230.06,3.63]
[1759713740049,7.51,230.2,230.06,3.6145055]
[1759713740248,7.51,230.2,230.1,3.9101]
[1759713740457,7.51,230.2,230.1,7.5401]
[1759713740955,7.51,230.2,230.1,3.63]
[1759713741162,3.9088,230.18,230.1,3.63]
[1759713741461,7.51,230.21,230.04,7.2445055]
[1759713742057,7.51,230.15,230.04,3.63]
[1759713743556,7.51,230.15,230.04,7.541]
[1759713744258,7.51,230.15,230.04,3.6145055]
[1759713744559,7.51,230.19,230.07,3.63]
[1759713745354,7.51,230.19,230.1,3.9101]
[1759713745563,7.51,230.19,230.07,3.63]
[1759713745564,7.51,230.25,230.11,3.63]
[1759713746063,11.4177,230.25,230.14,3.9094]
[1759713747058,11.4177,230.25,230.15,3.63]
[1759713748156,7.51,230.25,230.15,3.63]
[1759713748360,7.51,230.25,230.15,7.5391]
[1759713749166,7.51,230.25,230.17,3.9089]
[1759713749462,7.51,230.25,230.15,3.63]
[1759713749864,7.51,230.25,230.15,7.5391]
[1759713750162,7.51,230.25,230.15,3.63]
[1759713751564,7.51,230.25,230.16,3.9089]
[1759713754463,7.51,230.25,230.13,3.6145055]
[1759713754664,7.51,230.25,230.1,7.2345055]
[1759713754970,7.7,230.21,230.11,3.9098]
[1759713755268,7.7,230.21,230.11,7.5243055]
[1759713755469,7.7,230.21,230.12,3.6145055]
[1759713756167,7.7,230.21,230.13,3.6145055]
[1759713756570,7.7,230.21,230.13,7.5241055]
[1759713757266,7.7,230.21,230.14,3.6145055]
[1759713757466,7.7,230.21,230.14,7.5238055]
[1759713759774,7.7,230.21,230.14,3.6145055]
[1759713760074,7.7,230.21,230.13,3.6145055]
[1759713760970,7.7,230.21,230.12,3.6145055]
[1759713761172,7.7,230.21,230.1,3.6145055]
[1759713761365,7.7,230.17,230.07,3.6145055]
[1759713761570,7.7,230.15,230.06,3.6145055]
[1759713761872,7.7,230.13,230.05,3.6145055]
[1759713762171,7.7,230.1,230.03,3.6145055]
[1759713762372,7.7,230.1,230.04,3.6145055]
[1759713762971,7.7,230.1,230.05,3.6145055]
[1759713763274,7.7,230.16,230.05,3.6145055]
[1759713763873,68.51,230.16,230.05,3.6145055]
[1759713764070,7.7,230.13,230.04,3.6145055]
[1759713764470,3.9099,230.12,230.03,3.6145055]
[1759713764674,3.9099,230.12,230.05,3.6145055]
[1759713765278,3.9099,230.12,230.04,3.6145055]
[1759713767976,3.9102,230.1,230.04,3.6145055]
[1759713768173,3.9102,230.1,230.03,3.6145055]
[1759713768373,11.5302,230.1,230.03,3.6145055]
[1759713768571,7.62,230.1,230.04,3.6145055]
[1759713769177,7.62,230.1,230.03,3.6145055]
[1759713769372,7.62,230.1,230.04,3.6145055]
[1759713769774,7.62,230.1,230.01,12.39621177]
[1759713769775,7.62,230.1,230.03,3.6145055]
[1759713770268,7.62,230.1,230.04,3.6145055]
[1759713770472,113.97087567,230.15,230.01,3.59641597]
[1759713770473,7.62,230.08,230.01,3.59641597]
[1759713770673,7.62,230.08,229.99,3.59641597]
[1759713770868,7.62,230.08,230.0,3.59641597]
[1759713771077,3.9107,230.07,229.99,3.59641597]
[1759713771378,7.62,230.08,229.96,8.50461177]
[1759713771379,7.62,230.08,230.0,3.59641597]
[1759713771578,7.62,230.08,229.99,3.59641597]
[1759713772478,7.62,230.06,229.96,3.59641597]
[1759713772680,7.62,230.06,229.97,3.59641597]
[1759713773075,1.96611616,230.05,229.97,3.59641597]
[1759713773285,7.62,230.06,229.98,7.23641597]
[1759713773479,7.62,230.06,229.99,3.59641597]
[1759713773688,7.62,230.06,230.0,3.59641597]
[1759713774183,7.62,230.06,229.99,3.59641597]
[1759713775182,1.25797736,230.05,229.99,3.59641597]
[1759713775372,1.25797736,230.05,230.0,3.59641597]
[1759713775576,1.25797736,230.05,230.01,3.64]
[1759713775775,8.87797736,230.05,230.0,3.59641597]
[1759713776278,8.87797736,230.05,229.99,3.59641597]
[1759713777782,12.78897736,230.05,229.98,3.59641597]
[1759713778175,12.78897736,230.05,229.97,7.23641597]
[1759713778577,8.87797736,230.05,229.98,3.59641597]
[1759713778783,1.25797736,230.05,229.98,3.59641597]
[1759713778982,1.25797736,230.05,229.99,3.59641597]
[1759713779493,8.87797736,230.05,229.97,7.23641597]
[1759713780388,8.87797736,230.05,229.97,3.64]
[1759713780577,8.87797736,230.05,229.97,7.23641597]
[1759713780987,8.87797736,230.05,229.98,3.59641597]
[1759713781177,8.87797736,230.05,229.97,11.14861597]
[1759713781377,1.25797736,230.02,229.96,3.59641597]
[1759713781880,1.25797736,230.02,229.95,3.64]
[1759713782281,1.25797736,230.02,229.96,3.59641597]
[1759713782589,7.62,230.05,229.96,3.59641597]
[1759713782782,1.25797736,230.07,229.97,7.23641597]
[1759713782977,7.62,230.07,229.97,7.23641597]
[1759713783183,1.25797736,230.06,229.97,3.64]
[1759713783484,1.25797736,230.06,229.98,3.912]
[1759713784386,1.25797736,230.06,230.0,3.9118]
[1759713784792,1.25797736,230.06,229.98,3.59641597]
[1759713785092,1.25797736,230.06,229.97,3.64]
[1759713785093,1.25797736,230.06,229.97,11.14861597]
[1759713785887,1.25797736,230.06,229.98,3.912]
[1759713786094,1.25797736,230.06,229.98,7.50841597]
[1759713786288,7.62,230.07,229.98,7.50841597]
[1759713786492,1.25797736,230.06,229.98,7.50841597]
[1759713791191,1.25797736,230.03,229.98,3.59641597]
[1759713791389,8.87797736,230.0,229.95,7.23641597]
[1759713791588,8.87797736,230.0,229.92,17.9418163]
[1759713791589,1.25797736,229.97,229.92,16.6736205]
[1759713791895,1.25797736,229.97,229.93,3.64]
[1759713792291,8.87797736,229.97,229.91,3.59641597]
[1759713792600,1.25797736,229.94,229.88,3.59641597]
[1759713793091,1.25797736,229.97,229.89,3.64]
[1759713793292,1.25797736,229.94,229.88,3.59641597]
[1759713794299,7.62,229.96,229.87,3.59641597]
[1759713794495,7.62,229.99,229.88,7.23641597]
[1759713794800,8.87797736,229.99,229.91,3.64]
[1759713794997,8.87797736,229.99,229.91,7.5532]
[1759713795594,8.87797736,229.99,229.91,3.64]
[1759713795805,1.25797736,229.99,229.95,3.64]
[1759713796500,7.62,230.02,229.95,3.64]
[1759713796698,1.25797736,230.01,229.95,3.64]
[1759713796900,1.25797736,230.01,229.93,3.913]
[1759713797100,1.25797736,230.01,229.91,3.64]
[1759713797298,7.62,230.02,229.91,3.64]
[1759713797500,7.62,230.02,229.95,3.64]
[1759713798200,8.87797736,230.02,229.95,3.64]
[1759713799608,8.87797736,230.02,229.95,7.5527]
[1759713800110,8.87797736,230.02,229.95,3.64]
[1759713800806,7.62,230.02,229.95,3.64]
[1759713801010,8.87797736,230.02,229.95,3.64]
[1759713802009,8.87797736,230.02,229.94,7.50921597]
[1759713802410,1.25797736,230.06,229.96,7.5624]
[1759713802608,1.25797736,230.06,229.96,11.15881597]
[1759713803417,1.25797736,230.06,229.97,3.59641597]
[1759713804417,7.72,230.07,229.98,3.65]
[1759713804716,7.72,230.07,229.99,3.59641597]
[1759713805106,62.06,230.13,229.99,3.59641597]
[1759713805107,8.97797736,230.13,230.02,7.24641597]
[1759713805711,7.72,230.13,230.03,3.9112]
[1759713806210,7.72,230.13,230.03,7.50761597]
[1759713806813,7.72,230.13,230.03,3.59641597]
[1759713807013,7.72,230.13,230.05,3.59641597]
[1759713807216,1.25797736,230.14,230.06,7.24641597]
[1759713808516,1.25797736,230.14,230.06,11.15711597]
[1759713810312,1.25797736,230.14,230.06,7.5607]
[1759713810916,1.25797736,230.14,230.08,3.9104]
[1759713811123,7.72,230.17,230.09,3.65]
[1759713811717,7.72,230.17,230.09,7.24641597]
[1759713811911,7.72,230.17,230.1,3.9101]
[1759713812115,7.72,230.17,230.1,7.50651597]
[1759713812820,7.72,230.21,230.12,11.15611597]
[1759713813019,7.72,230.21,230.12,7.24641597]
[1759713813417,7.72,230.21,230.14,3.9094]
[1759713813722,51.79797736,230.23,230.14,3.9094]
[1759713813723,50.54,230.23,230.16,3.59641597]
[1759713813923,50.54,230.23,230.16,7.22641597]
[1759713814318,50.54,230.23,230.16,3.63]
[1759713814916,50.54,230.23,230.16,16.85072627]
[1759713816216,8.65797736,230.25,230.16,16.85072627]
[1759713816421,7.4,230.25,230.16,16.85072627]
[1759713818926,7.4,230.25,230.18,3.63]
[1759713820520,1.25797736,230.28,230.19,3.9086]
[1759713820824,1.25797736,230.28,230.18,4.88797736]
[1759713820825,7.4,230.29,230.2,3.63]
[1759713823525,7.4,230.26,230.16,17.18474752]
[1759713823719,7.4,230.26,230.17,3.63]
[1759713825026,7.4,230.26,230.18,3.9087]
[1759713825620,7.4,230.26,230.19,1.25797736]
[1759713825823,8.65797736,230.31,230.21,3.63]
[1759713826725,1.25797736,230.3,230.21,3.63]
[1759713826926,7.4,230.29,230.21,3.63]
[1759713828934,7.4,230.29,230.19,3.9085]
[1759713829227,7.4,230.29,230.2,3.9083]
[1759713829930,7.4,230.29,230.18,4.88797736]
[1759713831027,7.4,230.29,230.22,3.63]
[1759713832129,7.4,230.29,230.22,7.538]
[1759713832527,7.4,230.29,230.22,3.63]
[1759713832728,7.4,230.29,230.21,1.25797736]
[1759713834230,7.4,230.29,230.18,3.63]
[1759713834529,7.4,230.29,230.17,3.9089]
[1759713834726,7.4,230.29,230.17,7.5389]
[1759713834919,8.65797736,230.29,230.17,7.5389]
[1759713835124,7.4,230.29,230.18,1.25797736]
[1759713836326,8.02,230.26,230.17,3.9089]
[1759713837025,8.02,230.26,230.19,3.9086]
[1759713839027,8.02,230.26,230.17,3.63]
[1759713839028,8.02,230.26,230.17,7.5388]
[1759713840332,8.02,230.26,230.19,3.9085]
[1759713841129,8.02,230.31,230.22,3.63]
[1759713841431,8.02,230.31,230.22,5.59159055]
[1759713841631,8.02,230.31,230.24,3.9077]
[1759713842630,8.02,230.31,230.25,3.9074]
[1759713845234,8.02,230.31,230.22,5.59159055]
[1759713845632,8.02,230.31,230.24,3.9076]
[1759713848135,8.02,230.31,230.26,7.5374]
[1759713848631,8.02,230.31,230.26,3.9074]
[1759713848930,8.02,230.31,230.28,3.9071]
[1759713849832,8.02,230.31,230.26,3.63]
[1759713849833,8.02,230.37,230.26,3.63]
[1759713850028,8.02,230.37,230.24,3.59641597]
[1759713850430,8.02,230.37,230.25,3.59641597]
[1759713850827,8.02,230.37,230.27,7.5371]
[1759713851028,8.02,230.37,230.27,3.63]
[1759713851538,8.02,230.37,230.27,7.22641597]
[1759713851731,8.02,230.37,230.27,11.13351597]
[1759713851934,8.02,230.37,230.27,7.5371]
[1759713852334,8.02,230.37,230.27,11.13351597]
[1759713852836,8.02,230.38,230.27,11.13351597]
[1759713853836,5.86699055,230.39,230.27,11.13351597]
[1759713854034,8.02,230.38,230.27,11.13351597]
[1759713854234,8.02,230.38,230.28,3.59641597]
[1759713854436,8.02,230.38,230.27,11.13351597]
[1759713854739,8.02,230.38,230.29,3.59641597]
[1759713855334,8.02,230.38,230.3,3.59641597]
[1759713855534,8.02,230.38,230.3,7.22641597]
[1759713855738,318.08159055,230.46,230.32,3.63]
[1759713855932,8.02,230.45,230.33,64.394]
[1759713856133,8.02,230.45,230.37,7.22641597]
[1759713856539,8.02,230.45,230.4,3.905]
[1759713856736,8.02,230.53,230.4,3.905]
[1759713857337,9.98159055,230.53,230.4,3.905]
[1759713858132,8.02,230.53,230.4,3.905]
[1759713858332,8.02,230.53,230.44,3.63]
[1759713858538,8.02,230.53,230.44,7.22641597]
[1759713858740,8.02,230.53,230.44,3.63]
[1759713859437,7.74,230.54,230.44,12.77264189]
[1759713859641,1.96159055,230.55,230.4,38.32451907]
[1759713860235,7.74,230.54,230.41,3.63]
[1759713860638,7.74,230.5,230.41,13.12307364]
[1759713860836,7.74,230.5,230.4,3.63]
[1759713862845,11.6434,230.5,230.4,3.63]
[1759713863138,7.74,230.5,230.4,16.39832812]
[1759713863338,7.74,230.5,230.4,3.63]
[1759713863538,7.74,230.5,230.37,3.59641597]
[1759713863739,7.74,230.5,230.41,3.63]
[1759713864447,7.74,230.55,230.42,3.63]
[1759713866742,7.74,230.55,230.43,3.9045]
[1759713866947,7.74,230.55,230.44,3.63]
[1759713867746,7.74,230.55,230.45,3.9042]
[1759713869341,7.74,230.55,230.44,3.63]
[1759713869545,9.70159055,230.55,230.44,3.63]
[1759713869746,7.74,230.55,230.44,3.63]
[1759713871454,7.74,230.52,230.39,3.63]
[1759713872542,7.74,230.52,230.41,3.9048]
[1759713873351,7.74,230.52,230.43,3.9045]
[1759713873947,7.74,230.52,230.41,3.61]
[1759713874349,7.74,230.52,230.45,3.9041]
[1759713874552,7.72,230.63,230.46,3.61]
[1759713874743,7.72,230.59,230.46,3.61]
[1759713874946,7.72,230.59,230.47,28.6]
[1759713875150,7.72,230.59,230.48,3.61]
[1759713875652,1.96159055,230.65,230.53,3.9028]
[1759713875949,7.72,230.64,230.53,3.9028]
[1759713877053,7.72,230.64,230.54,3.61]
[1759713879150,4.79004461,230.92,230.68,60.6707]
[1759713879350,4.79004461,230.92,230.64,13.05]
[1759713879351,315.74,231.09,230.79,7.53]
[1759713879653,315.74,231.09,230.88,1.96159055]
[1759713879654,12.48792908,230.96,230.88,1.96159055]
[1759713879850,0.86,230.94,230.87,7.53]
[1759713880056,66.72792908,230.93,230.81,7.53]
[1759713880257,0.86,230.91,230.81,7.53]
[1759713880453,0.86,230.91,230.86,9.49159055]
[1759713880653,111.64,230.9,230.84,7.53]
[1759713880956,111.64,230.89,230.83,13.03424553]
[1759713881158,111.64,230.89,230.83,7.53]
[1759713881551,315.72,230.92,230.83,20.37587548]
[1759713881852,111.64,230.91,230.83,7.53]
[1759713882058,11.62792908,230.89,230.83,7.53]
[1759713882252,111.58,230.88,230.75,3.59641597]
[1759713882454,111.58,230.88,230.81,9.49159055]
[1759713882650,111.58,230.88,230.81,7.53]
[1759713882851,111.58,230.88,230.82,3.83999227]
[1759713883047,111.58,230.88,230.81,20.33021558]
[1759713883048,12.48792908,230.88,230.83,3.83999227]
[1759713883251,111.56,230.9,230.84,3.83999227]
[1759713883453,111.56,230.9,230.85,3.83999227]
[1759713883756,111.56,230.9,230.86,3.83999227]
[1759713883952,111.56,230.9,230.87,3.83999227]
[1759713884148,315.72,230.92,230.88,3.83999227]
[1759713884357,315.72,230.92,230.89,3.83999227]
[1759713884558,112.0,230.91,230.9,3.83999227]
[1759713884753,315.72,230.92,230.9,11.36999227]
[1759713884951,315.72,230.92,230.91,3.83999227]
[1759713885146,427.78,230.92,230.91,3.83999227]
[1759713886656,447.98792908,230.92,230.91,3.60890354]
[1759713886853,447.98792908,230.92,230.81,12.84329362]
[1759713887152,11.62792908,230.88,230.77,7.53]
[1759713887359,12.48792908,230.88,230.77,7.53]
[1759713887960,10.8739806,230.87,230.77,7.53]
[1759713888160,112.08,230.86,230.77,7.53]
[1759713888555,323.44,230.92,230.77,7.53]
[1759713888556,112.0,230.85,230.77,7.53]
[1759713889155,323.44,230.92,230.77,7.53]
[1759713889156,111.98,230.84,230.77,7.53]
[1759713889356,323.44,230.92,230.77,7.53]
[1759713889357,111.98,230.83,230.77,7.53]
[1759713891261,7.46,230.88,230.77,20.78855024]
[1759713891457,0.86,230.87,230.78,7.96]
[1759713891657,315.72,230.92,230.78,7.96]
[1759713891853,0.86,230.9,230.78,7.96]
[1759713892059,10.8739806,230.89,230.78,7.96]
[1759713892358,7.46,230.9,230.78,7.96]
[1759713892560,7.46,230.87,230.7,3.59641597]
[1759713892862,315.72,230.92,230.68,12.68653076]
[1759713892863,7.46,230.8,230.68,12.68653076]
[1759713893167,10.8739806,230.75,230.63,7.96]
[1759713893662,12.68,230.74,230.63,20.6700854]
[1759713893857,0.86,230.75,230.63,7.96]
[1759713894059,13.2139806,230.74,230.63,7.96]
[1759713894365,11.7339806,230.75,230.64,7.96]
[1759713894565,24.7939806,230.75,230.64,7.96]
[1759713894765,11.7339806,230.75,230.64,7.96]
[1759713894962,36.3339806,230.74,230.64,7.96]
[1759713895364,7.46,230.8,230.64,7.96]
[1759713895566,10.8739806,230.75,230.65,3.9007]
[1759713895756,0.86,230.65,230.6,3.41203128]
[1759713895962,0.86,230.65,230.48,9.73512142]
[1759713895963,7.46,230.6,230.48,7.96]
[1759713896162,7.46,230.6,230.48,13.23487525]
[1759713896163,10.8739806,230.53,230.48,13.23487525]
[1759713896459,19.1939806,230.52,230.41,42.72235058]
[1759713896660,11.7339806,230.5,230.41,7.96]
[1759713896859,64.5789,230.66,230.42,60.7403]
[1759713896860,5.0171513,230.66,230.42,60.7403]
[1759713897065,10.8739806,230.54,230.42,63.74991668]
[1759713897260,10.8739806,230.55,230.45,7.96]
[1759713897456,74.36,230.54,230.42,20.70642282]
[1759713897760,10.8739806,230.51,230.42,20.70642282]
[1759713898161,103.7,230.54,230.42,81.44582282]
[1759713898361,7.46,230.62,230.47,3.9037]
[1759713898567,10.8739806,230.55,230.47,3.9037]
[1759713898756,0.86,230.58,230.47,60.727]
[1759713898961,10.8739806,230.57,230.47,60.727]
[1759713899162,10.8739806,230.57,230.49,3.9034]
[1759713899660,10.8739806,230.56,230.49,3.9034]
[1759713899861,10.8739806,230.53,230.46,7.96]
[1759713900064,10.8739806,230.53,230.43,60.7376]
[1759713900256,7.46,230.58,230.48,3.9035]
[1759713900456,10.8739806,230.53,230.48,11.8635]
[1759713900666,10.8739806,230.54,230.48,11.8635]
[1759713900960,7.46,230.58,230.5,3.9032]
[1759713901166,10.8739806,230.57,230.5,3.9032]
[1759713901369,18.3339806,230.55,230.5,3.9032]
[1759713901758,7.46,230.55,230.5,3.9032]
[1759713902162,11.7339806,230.55,230.5,3.9032]
[1759713902363,7.46,230.54,230.5,3.9032]
[1759713902565,11.7339806,230.55,230.5,3.9032]
[1759713903261,19.1939806,230.55,230.5,3.9032]
[1759713904066,7.46,230.74,230.56,60.7017]
[1759713904262,3.00961668,230.71,230.56,60.702]
[1759713904464,3.0237806,230.6,230.55,60.7059]
[1759713904659,8.06e-05,230.6,230.57,64.6028]
[1759713904862,7.46,230.63,230.58,60.6977]
[1759713905062,7.46,230.65,230.58,60.6977]
[1759713905366,7.46,230.65,230.6,3.9016]
[1759713905563,7.46,230.65,230.53,60.7111]
[1759713905766,7.46,230.65,230.55,60.7054]
[1759713906070,113.92,230.64,230.55,60.7054]
[1759713906266,3.00961668,230.71,230.58,60.6976]
[1759713906472,7.46,230.69,230.58,60.6976]
[1759713906768,7.46,230.69,230.61,60.6903]
[1759713906969,22.32,230.68,230.63,60.6849]
[1759713907173,7.46,230.67,230.64,3.71362836]
[1759713907374,7.46,230.74,230.65,3.71362836]
[1759713907574,7.46,230.72,230.66,3.71362836]
[1759713907769,322.64513849,230.75,230.67,7.61392836]
[1759713907770,7.46,230.7,230.67,7.61392836]
[1759713907974,7.14513849,230.75,230.68,3.71362836]
[1759713908168,7.46,230.74,230.69,3.71362836]
[1759713908364,7.14513849,230.75,230.7,0.00362836]
[1759713908365,7.46,230.72,230.7,0.00362836]
[1759713908573,7.46,230.72,230.71,0.00362836]
[1759713908875,92.26,230.72,230.71,0.00362836]
[1759713909074,7.46,230.72,230.71,0.00362836]
[1759713909278,121.18,230.72,230.71,0.00362836]
[1759713909475,121.18,230.72,230.67,3.9003]
[1759713909672,113.72,230.72,230.67,3.9003]
[1759713909867,7.46,230.71,230.67,3.9003]
[1759713910072,113.72,230.72,230.67,3.9003]
[1759713910472,7.46,230.71,230.67,3.9003]
[1759713911174,322.66513849,230.75,230.69,3.9]
[1759713911480,113.58,230.74,230.71,60.6635]
[1759713911671,319.65552181,230.75,230.72,3.8996]
[1759713911876,0.6353,230.73,230.72,3.8996]
[1759713912077,113.66,230.74,230.72,3.8996]
[1759713912283,315.52,230.81,230.76,3.8988]
[1759713912482,3.00961668,230.82,230.75,60.6527]
[1759713912785,318.52961668,230.84,230.79,3.8984]
[1759713912982,3.00961668,230.84,230.79,3.8984]
[1759713913180,3.00961668,230.86,230.79,3.8984]
[1759713913486,113.64,230.85,230.79,3.8984]
[1759713913786,113.64,230.85,230.75,3.899]
[1759713913987,7.46,230.83,230.75,3.899]
[1759713914179,116.64961668,230.84,230.7,60.6664]
[1759713914385,7.46,230.83,230.7,60.6664]
[1759713914580,7.46,230.79,230.72,3.8995]
[1759713914776,7.46,230.79,230.67,60.6744]
[1759713915379,113.62,230.78,230.71,3.8997]
[1759713915581,113.62,230.78,230.64,60.6811]
[1759713915785,7.46,230.75,230.59,7.96]
[1759713915983,7.46,230.75,230.65,3.9007]
[1759713916485,3.00961668,230.76,230.6,60.6926]
[1759713916785,7.46,230.75,230.63,3.901]
[1759713917182,7.46,230.75,230.59,7.96]
[1759713917183,7.46,230.75,230.59,68.6541]
[1759713917380,3.00961668,230.71,230.57,60.6989]
[1759713917587,8.01,230.69,230.57,60.6989]
[1759713917783,8.01,230.69,230.54,60.7072]
[1759713917982,8.01,230.69,230.5,60.7168]